bitfinex/quotes_SOLUSD_20250802
["timestamp","ask_amount","ask_price","bid_price","bid_amount"]
[1754148719494,70.08,162.84,162.83,0.69]
[1754148720309,44.08,162.85,162.83,11.26115548]
[1754148720509,44.1,162.87,162.84,11.26115548]
[1754148720719,44.1,162.87,162.85,0.69]
[1754148721091,44.1,162.87,162.86,0.68]
[1754148721339,44.1,162.87,162.86,11.25115548]
[1754148721499,44.16,162.87,162.86,11.25115548]
[1754148724122,26.66,162.94,162.86,11.25115548]
[1754148724123,26.0,162.94,162.86,11.25115548]
[1754148724420,44.2,162.93,162.92,10.57115548]
[1754148724627,44.2,162.93,162.92,0.68]
[1754148724830,44.2,162.93,162.89,11.25115548]
[1754148725201,44.2,162.93,162.86,0.68]
[1754148725202,36.57115548,162.91,162.86,0.68]
[1754148725522,44.18,162.9,162.83,0.74]
[1754148725827,0.03,162.89,162.85,10.57115548]
[1754148726007,26.0,162.87,162.84,10.57115548]
[1754148726199,44.2,162.86,162.85,0.06]
[1754148727098,44.2,162.86,162.85,11.31115548]
[1754148727322,44.2,162.86,162.85,0.06]
[1754148727692,44.18,162.86,162.85,11.31115548]
[1754148728296,44.18,162.86,162.85,0.74]
[1754148728496,44.18,162.86,162.85,0.06]
[1754148729830,55.41115548,162.86,162.85,0.06]
[1754148731028,44.84,162.86,162.85,0.06]
[1754148731431,55.41115548,162.86,162.85,0.06]
[1754148732011,54.75115548,162.86,162.85,0.06]
[1754148732217,55.41115548,162.86,162.85,0.06]
[1754148735372,75.38519853,162.86,162.85,0.06]
[1754148736057,64.81404305,162.86,162.85,0.06]
[1754148736359,75.38519853,162.86,162.85,0.06]
[1754148736849,81.52544168,162.86,162.85,0.06]
[1754148737066,89.86336935,162.86,162.85,0.06]
[1754148737215,73.15197072,162.86,162.85,0.06]
[1754148737524,83.7231262,162.86,162.85,0.06]
[1754148737717,89.86336935,162.86,162.85,0.06]
[1754148737918,83.7231262,162.86,162.85,0.06]
[1754148738332,28.97197072,162.86,162.85,0.06]
[1754148738549,58.08051456,162.86,162.85,0.06]
[1754148738746,75.52519853,162.86,162.85,0.06]
[1754148738930,83.8631262,162.86,162.85,0.06]
[1754148739135,90.00336935,162.86,162.85,0.06]
[1754148740061,97.79221387,162.86,162.85,0.06]
[1754148740365,108.36336935,162.86,162.85,0.06]
[1754148741149,25.12261164,162.85,162.83,0.06]
[1754148741475,55.01115548,162.84,162.83,0.06]
[1754148741634,64.00908315,162.84,162.83,0.06]
[1754148742733,80.13376712,162.84,162.83,0.06]
[1754148743038,80.79376712,162.84,162.83,0.06]
[1754148743356,86.93476441,162.84,162.83,0.06]
[1754148743670,80.79376712,162.84,162.83,0.06]
[1754148743875,86.93476441,162.84,162.83,0.06]
[1754148744041,26.0,162.81,162.74,0.68]
[1754148744243,10.57115548,162.76,162.74,0.68]
[1754148744538,26.0,162.77,162.74,0.68]
[1754148744539,44.62,162.75,162.74,0.68]
[1754148744757,10.57115548,162.82,162.74,11.25115548]
[1754148744987,19.97404305,162.86,162.81,10.57115548]
[1754148744988,3.18935908,162.86,162.81,10.57115548]
[1754148745143,26.0,162.82,162.71,17.39927434]
[1754148745476,55.31115548,162.81,162.69,16.78468397]
[1754148745770,55.31115548,162.81,162.63,0.6148927]
[1754148745771,26.0,162.78,162.74,10.57115548]
[1754148745942,44.74,162.77,162.74,0.68]
[1754148746144,44.74,162.77,162.75,0.68]
[1754148746457,44.74,162.77,162.76,0.68]
[1754148746791,44.04,162.77,162.76,11.25115548]
[1754148748053,44.04,162.77,162.76,0.68]
[1754148748560,44.04,162.77,162.75,10.57115548]
[1754148748775,44.04,162.77,162.74,10.57115548]
[1754148748947,44.04,162.77,162.7,10.57115548]
[1754148749152,44.04,162.77,162.75,10.57115548]
[1754148749649,26.0,162.8,162.76,10.57115548]
[1754148749850,26.0,162.8,162.71,0.61459037]
[1754148749851,44.8,162.79,162.78,10.57115548]
[1754148750479,44.8,162.79,162.76,10.57115548]
[1754148750779,44.8,162.79,162.7,10.57115548]
[1754148750780,56.05115548,162.79,162.7,10.57115548]
[1754148751070,56.05115548,162.79,162.74,10.57115548]
[1754148751071,10.57115548,162.78,162.74,10.57115548]
[1754148751277,44.82,162.77,162.73,10.57115548]
[1754148751465,0.68,162.76,162.71,10.57115548]
[1754148751645,0.68,162.76,162.72,10.57115548]
[1754148752466,55.39115548,162.77,162.72,10.57115548]
[1754148752671,55.39115548,162.77,162.73,10.57115548]
[1754148752872,44.82,162.77,162.73,10.57115548]
[1754148753084,55.39115548,162.77,162.73,10.57115548]
[1754148753388,56.07115548,162.77,162.73,10.57115548]
[1754148753883,11.25115548,162.76,162.71,10.57115548]
[1754148754174,10.57115548,162.76,162.66,0.1]
[1754148754467,10.57115548,162.74,162.7,10.57115548]
[1754148754686,71.5,162.73,162.69,10.57115548]
[1754148756165,71.5,162.73,162.66,0.1]
[1754148756367,71.5,162.73,162.69,10.57115548]
[1754148756980,0.68,162.72,162.69,10.57115548]
[1754148757183,26.0,162.7,162.67,10.57115548]
[1754148757371,44.76,162.69,162.66,0.1]
[1754148757571,44.76,162.69,162.67,10.57115548]
[1754148758065,44.76,162.69,162.68,10.57115548]
[1754148758266,44.76,162.69,162.66,0.1]
[1754148758495,44.76,162.69,162.68,10.57115548]
[1754148758695,44.76,162.69,162.66,0.1]
[1754148758900,44.76,162.69,162.68,10.57115548]
[1754148761296,44.76,162.69,162.66,0.1]
[1754148761798,0.68,162.68,162.66,0.1]
[1754148761972,45.4,162.67,162.66,0.1]
[1754148762295,44.72,162.67,162.66,0.1]
[1754148762494,44.72,162.67,162.66,10.67115548]
[1754148762699,26.0,162.69,162.66,10.67115548]
[1754148762887,44.7,162.67,162.66,0.1]
[1754148763225,44.7,162.67,162.66,10.67115548]
[1754148764266,44.68,162.67,162.66,10.67115548]
[1754148764726,44.68,162.67,162.66,0.1]
[1754148764873,45.36,162.67,162.66,0.1]
[1754148765282,55.93115548,162.67,162.66,0.1]
[1754148765579,55.93115548,162.67,162.58,0.02]
[1754148765580,26.0,162.66,162.61,10.57115548]
[1754148765921,26.0,162.66,162.64,10.57115548]
[1754148765922,44.66,162.65,162.64,10.57115548]
[1754148766101,26.0,162.66,162.64,10.57115548]
[1754148766278,44.64,162.65,162.64,0.11]
[1754148766707,44.64,162.65,162.64,10.68115548]
[1754148768010,44.64,162.65,162.64,10.57115548]
[1754148769793,0.68,162.69,162.64,10.57115548]
[1754148770114,45.26,162.68,162.66,10.57115548]
[1754148770488,0.68,162.67,162.66,10.57115548]
[1754148770881,0.68,162.67,162.62,0.06]
[1754148771085,0.68,162.67,162.66,10.57115548]
[1754148771918,0.68,162.67,162.62,0.06]
[1754148772211,0.68,162.67,162.64,10.57115548]
[1754148772637,0.68,162.67,162.63,10.57115548]
[1754148772786,0.68,162.67,162.62,10.63115548]
[1754148772787,37.25115548,162.67,162.62,10.63115548]
[1754148772986,0.68,162.66,162.62,10.63115548]
[1754148773216,45.2,162.65,162.62,0.06]
[1754148773432,45.2,162.65,162.62,10.63115548]
[1754148773615,0.68,162.64,162.62,10.63115548]
[1754148773827,0.68,162.63,162.62,10.63115548]
[1754148774783,0.68,162.63,162.62,0.06]
[1754148774992,0.68,162.63,162.62,10.63115548]
[1754148775191,11.25115548,162.63,162.62,0.06]
[1754148775398,0.68,162.63,162.62,0.06]
[1754148775916,45.16,162.63,162.62,0.06]
[1754148776585,44.48,162.63,162.62,0.06]
[1754148776993,45.16,162.63,162.62,0.06]
[1754148777791,0.68,162.63,162.62,0.06]
[1754148778022,45.12,162.63,162.62,0.06]
[1754148778904,31.0438923,162.64,162.62,0.06]
[1754148779111,44.44,162.63,162.62,0.06]
[1754148779514,44.44,162.63,162.62,10.63115548]
[1754148780131,31.67607604,162.66,162.62,10.63115548]
[1754148780309,10.57115548,162.67,162.62,10.63115548]
[1754148780310,10.57115548,162.67,162.63,10.57115548]
[1754148780629,45.1,162.65,162.63,10.57115548]
[1754148780817,44.42,162.65,162.63,10.57115548]
[1754148781215,44.42,162.65,162.64,10.57115548]
[1754148781524,44.42,162.65,162.62,0.06]
[1754148781710,45.13,162.65,162.64,10.57115548]
[1754148782031,44.42,162.65,162.64,10.57115548]
[1754148782799,44.42,162.65,162.62,0.06]
[1754148782800,45.13,162.65,162.62,0.06]
[1754148783028,0.71,162.64,162.62,10.63115548]
[1754148783240,0.71,162.64,162.63,10.57115548]
[1754148783431,44.42,162.65,162.63,10.57115548]
[1754148783727,0.71,162.64,162.63,10.57115548]
[1754148784298,0.71,162.64,162.62,0.06]
[1754148784493,0.03,162.68,162.63,10.57115548]
[1754148784494,26.0,162.66,162.63,10.57115548]
[1754148784743,44.36,162.65,162.64,10.57115548]
[1754148784952,45.07,162.65,162.62,0.06]
[1754148785132,0.71,162.64,162.62,0.06]
[1754148785336,45.07,162.65,162.63,10.57115548]
[1754148785732,45.07,162.65,162.62,0.06]
[1754148785733,0.71,162.64,162.62,0.06]
[1754148785940,0.71,162.64,162.63,10.57115548]
[1754148786254,44.34,162.64,162.63,10.57115548]
[1754148786426,44.34,162.64,162.62,0.06]
[1754148786427,66.57011451,162.64,162.55,4.27159233]
[1754148786627,10.57115548,162.56,162.55,3.65159233]
[1754148786828,76.63059603,162.56,162.55,3.65159233]
[1754148787027,84.50251476,162.56,162.55,3.65159233]
[1754148788331,84.50251476,162.56,162.44,0.69]
[1754148788332,26.0,162.53,162.44,0.69]
[1754148788650,10.57115548,162.5,162.44,11.26115548]
[1754148788829,45.4,162.49,162.45,11.26115548]
[1754148789026,45.4,162.49,162.45,10.57115548]
[1754148789326,45.4,162.49,162.46,0.69]
[1754148789955,45.4,162.49,162.47,0.69]
[1754148790262,45.4,162.49,162.48,0.69]
[1754148792024,45.4,162.49,162.44,0.06]
[1754148792225,45.4,162.49,162.45,0.69]
[1754148792427,45.4,162.49,162.46,10.57115548]
[1754148792624,45.4,162.49,162.44,0.06]
[1754148792834,55.97115548,162.49,162.45,0.69]
[1754148793021,45.4,162.49,162.44,0.06]
[1754148793643,10.57115548,162.48,162.44,0.06]
[1754148794353,10.57115548,162.45,162.44,0.06]
[1754148794655,45.38,162.45,162.44,0.06]
[1754148795533,7.50844786,162.53,162.44,11.32115548]
[1754148795729,7.50844786,162.53,162.52,10.57115548]
[1754148795927,7.50844786,162.53,162.52,11.26115548]
[1754148796348,7.50844786,162.53,162.52,0.69]
[1754148796539,7.50844786,162.53,162.48,0.69]
[1754148796738,10.57115548,162.51,162.46,0.69]
[1754148797052,71.52,162.5,162.45,10.57115548]
[1754148797261,71.52,162.5,162.46,0.69]
[1754148797552,72.23,162.5,162.44,10.63115548]
[1754148797761,10.57115548,162.47,162.44,0.06]
[1754148797928,45.54,162.46,162.44,0.06]
[1754148798654,7.50844786,162.53,162.44,0.06]
[1754148798655,7.50844786,162.53,162.45,11.26115548]
[1754148798859,7.50844786,162.53,162.52,10.57115548]
[1754148799158,53.10844786,162.53,162.52,11.26115548]
[1754148799659,7.50844786,162.53,162.52,0.69]
[1754148799835,7.50844786,162.53,162.52,11.26115548]
[1754148801954,5.0603669,162.65,162.53,26.78468397]
[1754148802133,0.03,162.68,162.64,10.57115548]
[1754148802333,0.03,162.68,162.65,10.57115548]
[1754148802334,45.6,162.67,162.65,10.57115548]
[1754148802541,45.6,162.67,162.64,10.57115548]
[1754148803041,46.31,162.67,162.63,10.57115548]
[1754148803764,0.71,162.66,162.59,0.69]
[1754148803935,0.71,162.66,162.63,10.57115548]
[1754148804134,45.6,162.67,162.63,10.57115548]
[1754148804334,0.71,162.66,162.63,10.57115548]
[1754148804646,45.6,162.67,162.63,10.57115548]
[1754148805565,45.6,162.67,162.64,10.57115548]
[1754148805868,45.6,162.67,162.66,10.57115548]
[1754148806031,45.6,162.67,162.62,0.69]
[1754148806227,45.6,162.67,162.65,10.57115548]
[1754148806539,0.71,162.66,162.6,0.69]
[1754148806744,56.17115548,162.67,162.63,10.57115548]
[1754148806967,45.6,162.67,162.65,10.57115548]
[1754148807152,45.6,162.67,162.6,0.69]
[1754148807463,46.31,162.67,162.63,10.57115548]
[1754148807659,45.6,162.67,162.64,10.57115548]
[1754148807876,45.6,162.67,162.6,0.69]
[1754148807877,0.71,162.66,162.6,0.69]
[1754148808158,0.71,162.66,162.63,10.57115548]
[1754148808352,3.2053055,162.66,162.64,10.57115548]
[1754148808550,3.2053055,162.66,162.63,10.57115548]
[1754148808862,3.2053055,162.66,162.64,10.57115548]
[1754148809040,10.57115548,162.65,162.55,0.61519532]
[1754148809228,56.07115548,162.64,162.57,0.69]
[1754148809425,56.07115548,162.64,162.5,16.78468397]
[1754148809426,10.57115548,162.63,162.59,10.57115548]
[1754148809640,10.57115548,162.61,162.56,10.57115548]
[1754148809857,56.78115548,162.6,162.56,10.57115548]
[1754148810440,56.78115548,162.6,162.53,0.69]
[1754148810661,56.78115548,162.6,162.56,10.57115548]
[1754148810662,45.5,162.6,162.56,10.57115548]
[1754148810840,56.74115548,162.6,162.54,0.7]
[1754148811033,56.74115548,162.6,162.56,10.57115548]
[1754148811349,56.74115548,162.6,162.55,10.57115548]
[1754148811972,10.57115548,162.57,162.51,0.7]
[1754148812142,45.48,162.56,162.52,10.57115548]
[1754148812334,45.48,162.56,162.49,0.7]
[1754148812335,46.15,162.56,162.49,0.7]
[1754148812560,46.15,162.56,162.52,10.57115548]
[1754148812936,45.48,162.56,162.53,10.57115548]
[1754148813466,45.48,162.56,162.52,0.7]
[1754148813636,11.24115548,162.55,162.51,10.57115548]
[1754148813968,0.67,162.55,162.5,10.57115548]
[1754148814171,11.24115548,162.55,162.5,10.57115548]
[1754148814467,0.67,162.55,162.51,10.57115548]
[1754148815075,56.05115548,162.56,162.51,10.57115548]
[1754148815250,56.72115548,162.56,162.51,10.57115548]
[1754148815776,10.57115548,162.54,162.5,10.57115548]
[1754148815976,45.42,162.53,162.5,11.27115548]
[1754148816276,45.42,162.53,162.51,10.57115548]
[1754148816491,10.60115548,162.6,162.44,0.06]
[1754148816492,45.4,162.55,162.52,11.27115548]
[1754148816778,45.44,162.55,162.53,0.7]
[1754148817080,56.68115548,162.55,162.47,4.5654378]
[1754148817287,10.57115548,162.54,162.5,10.57115548]
[1754148817666,10.57115548,162.57,162.52,10.57115548]
[1754148817881,45.44,162.56,162.53,11.27115548]
[1754148818180,45.44,162.56,162.54,0.7]
[1754148818509,45.44,162.56,162.54,11.27115548]
[1754148818866,45.44,162.56,162.55,10.57115548]
[1754148819184,45.44,162.56,162.55,0.7]
[1754148819494,45.44,162.56,162.47,0.61549824]
[1754148819495,45.44,162.56,162.52,0.7]
[1754148819667,45.44,162.56,162.53,11.27115548]
[1754148820087,45.44,162.56,162.53,0.7]
[1754148820257,45.44,162.56,162.55,10.57115548]
[1754148820586,45.44,162.56,162.55,11.27115548]
[1754148821170,45.44,162.56,162.51,0.7]
[1754148821362,45.44,162.56,162.55,10.57115548]
[1754148822174,45.44,162.56,162.54,10.57115548]
[1754148822394,45.44,162.56,162.53,10.57115548]
[1754148822592,45.44,162.56,162.54,10.57115548]
[1754148822795,45.44,162.56,162.53,10.57115548]
[1754148823697,46.11,162.56,162.49,0.7]
[1754148823909,56.68115548,162.56,162.51,10.57115548]
[1754148825697,46.11,162.56,162.51,10.57115548]
[1754148825904,56.68115548,162.56,162.51,10.57115548]
[1754148826712,10.57115548,162.55,162.51,10.57115548]
[1754148827092,45.44,162.56,162.53,10.57115548]
[1754148827405,45.4,162.55,162.54,10.57115548]
[1754148827802,45.4,162.55,162.53,0.7]
[1754148828109,45.4,162.55,162.53,10.57115548]
[1754148828319,45.4,162.55,162.54,10.57115548]
[1754148828508,45.4,162.55,162.51,0.7]
[1754148828834,45.4,162.55,162.51,10.57115548]
[1754148829009,46.07,162.55,162.51,10.57115548]
[1754148829204,46.07,162.55,162.49,0.7]
[1754148829205,56.64115548,162.55,162.49,0.7]
[1754148829387,11.24115548,162.54,162.49,0.7]
[1754148829587,11.24115548,162.53,162.46,4.58016078]
[1754148829787,10.57115548,162.51,162.46,10.57115548]
[1754148830027,11.24115548,162.5,162.46,10.57115548]
[1754148830238,71.36,162.52,162.44,0.06]
[1754148830239,56.60115548,162.49,162.44,0.06]
[1754148830397,10.57115548,162.48,162.44,0.06]
[1754148830597,11.24115548,162.48,162.44,0.06]
[1754148830825,11.24115548,162.48,162.44,10.63115548]
[1754148831241,10.57115548,162.46,162.44,0.06]
[1754148831391,55.93115548,162.45,162.44,0.06]
[1754148831594,56.60115548,162.45,162.44,0.06]
[1754148831816,46.03,162.45,162.44,0.06]
[1754148832020,45.36,162.45,162.44,0.06]
[1754148833327,56.60115548,162.45,162.44,0.06]
[1754148834439,46.03,162.45,162.44,0.06]
[1754148834592,56.60115548,162.45,162.44,0.06]
[1754148834829,46.03,162.45,162.44,0.06]
[1754148835159,56.60115548,162.45,162.44,0.06]
[1754148836257,46.03,162.45,162.44,0.06]
[1754148836458,56.60115548,162.45,162.44,0.06]
[1754148836772,60.67491393,162.45,162.44,0.06]
[1754148837639,77.4595979,162.45,162.44,0.06]
[1754148838239,26.0,162.42,162.35,15.375]
[1754148838452,45.28,162.41,162.35,15.375]
[1754148838758,10.57115548,162.38,162.35,15.375]
[1754148838930,0.67,162.4,162.35,15.375]
[1754148838931,10.57115548,162.36,162.35,15.375]
[1754148839134,56.52115548,162.36,162.35,15.375]
[1754148839937,10.57115548,162.36,162.35,15.375]
[1754148840138,56.01115548,162.36,162.35,15.375]
[1754148840461,60.74227164,162.36,162.35,15.375]
[1754148840638,77.52695561,162.36,162.35,15.375]
[1754148840839,60.74227164,162.36,162.35,15.375]
[1754148841142,77.52695561,162.36,162.35,15.375]
[1754148841334,69.11284536,162.36,162.35,15.375]
[1754148841758,12.43168988,162.36,162.35,15.375]
[1754148842038,10.57115548,162.4,162.35,26.65615548]
[1754148842238,10.57115548,162.38,162.35,15.375]
[1754148842443,10.57115548,162.36,162.35,15.375]
[1754148842650,56.19115548,162.36,162.35,15.375]
[1754148842838,78.03978218,162.36,162.35,15.375]
[1754148843041,82.04641317,162.36,162.35,15.375]
[1754148844264,82.19115548,162.36,162.35,15.375]
[1754148844572,82.04641317,162.36,162.35,15.375]
[1754148844751,82.04641317,162.36,162.35,15.265]
[1754148844959,82.04641317,162.36,162.2,5.04465046]
[1754148844960,120.12650204,162.36,162.2,5.04465046]
[1754148845167,120.12650204,162.36,162.2,5.75465046]
[1754148845168,10.57115548,162.26,162.2,5.75465046]
[1754148845482,26.0,162.27,162.2,5.75465046]
[1754148845483,45.98,162.25,162.21,0.71]
[1754148845851,3.0,162.28,162.21,0.71]
[1754148846050,46.08,162.27,162.26,10.57115548]
[1754148846265,0.72,162.28,162.26,11.28115548]
[1754148846482,0.72,162.28,162.21,10.6164848]
[1754148846483,0.72,162.28,162.23,26.78468397]
[1754148846786,0.72,162.28,162.27,10.57115548]
[1754148846965,10.57115548,162.4,162.27,21.14231096]
[1754148847162,44.4,162.43,162.36,10.57115548]
[1754148847163,46.32,162.39,162.36,10.57115548]
[1754148847349,46.32,162.39,162.37,10.57115548]
[1754148847550,11.27115548,162.38,162.26,0.61629483]
[1754148847760,10.57115548,162.36,162.32,10.57115548]
[1754148847958,46.38,162.35,162.32,10.57115548]
[1754148848267,16.78468397,162.42,162.29,10.57115548]
[1754148848268,47.08,162.34,162.29,10.57115548]
[1754148848598,46.38,162.33,162.29,10.57115548]
[1754148848779,47.08,162.33,162.29,10.57115548]
[1754148848992,57.65115548,162.33,162.29,10.57115548]
[1754148849183,10.57115548,162.31,162.21,16.78468397]
[1754148849351,10.57115548,162.29,162.2,15.61580594]
[1754148849553,10.57115548,162.29,162.2,5.04465046]
[1754148849778,10.57115548,162.26,162.21,10.57115548]
[1754148849960,57.73115548,162.25,162.2,15.61580594]
[1754148850165,0.7,162.24,162.2,5.04465046]
[1754148850378,26.0,162.26,162.23,10.57115548]
[1754148850554,46.52,162.27,162.2,15.61580594]
[1754148850753,46.52,162.27,162.26,10.57115548]
[1754148851178,46.52,162.27,162.25,10.57115548]
[1754148851387,26.0,162.3,162.26,10.57115548]
[1754148851559,74.56424892,162.51,162.21,17.40116877]
[1754148851560,0.7,162.37,162.21,17.40116877]
[1754148851881,46.58,162.32,162.21,17.40116877]
[1754148852095,46.58,162.32,162.28,10.57115548]
[1754148852303,46.58,162.32,162.21,17.40116877]
[1754148852477,46.58,162.32,162.31,10.57115548]
[1754148853473,46.62,162.37,162.31,10.57115548]
[1754148853819,46.62,162.37,162.36,10.57115548]
[1754148854178,46.62,162.37,162.3,10.57115548]
[1754148854495,46.62,162.37,162.34,10.57115548]
[1754148854811,47.32,162.37,162.33,15.15172859]
[1754148855020,0.7,162.36,162.26,16.78468397]
[1754148855195,15.85172859,162.36,162.31,15.15172859]
[1754148855512,46.62,162.37,162.33,15.15172859]
[1754148855717,46.62,162.37,162.34,15.15172859]
[1754148856215,46.62,162.37,162.26,16.78468397]
[1754148856383,46.62,162.37,162.36,15.15172859]
[1754148856980,3.20235347,162.42,162.36,15.15172859]
[1754148857186,46.58,162.41,162.37,15.15172859]
[1754148857379,47.28,162.41,162.37,15.15172859]
[1754148857811,47.28,162.41,162.39,15.15172859]
[1754148858015,46.58,162.41,162.39,15.15172859]
[1754148858322,47.28,162.41,162.37,15.15172859]
[1754148858522,46.58,162.41,162.38,15.15172859]
[1754148858728,46.58,162.41,162.39,15.15172859]
[1754148858929,46.58,162.41,162.4,15.15172859]
[1754148859709,46.58,162.41,162.36,15.15172859]
[1754148859924,46.58,162.41,162.4,15.15172859]
[1754148860738,47.28,162.41,162.37,15.15172859]
[1754148861093,0.7,162.4,162.37,15.15172859]
[1754148861300,0.7,162.39,162.37,15.15172859]
[1754148862436,46.58,162.41,162.37,15.15172859]
[1754148862738,46.58,162.41,162.38,15.15172859]
[1754148863102,46.58,162.41,162.39,15.15172859]
[1754148863338,0.7,162.4,162.3,43.40082691]
[1754148863515,0.7,162.4,162.37,15.15172859]
[1754148863707,0.7,162.4,162.36,15.15172859]
[1754148863906,0.7,162.4,162.37,15.15172859]
[1754148864326,46.58,162.41,162.39,15.15172859]
[1754148864526,46.58,162.41,162.4,15.15172859]
[1754148865631,46.54,162.44,162.4,15.15172859]
[1754148865933,46.54,162.44,162.36,15.15172859]
[1754148865934,46.54,162.44,162.43,15.15172859]
[1754148866524,3.04269594,162.51,162.43,15.15172859]
[1754148866525,4.96945493,162.5,162.43,30.30345718]
[1754148866726,45.14,162.55,162.49,15.15172859]
[1754148866920,45.14,162.55,162.47,15.15172859]
[1754148866921,46.54,162.54,162.47,15.15172859]
[1754148867232,46.54,162.54,162.53,15.15172859]
[1754148867476,47.24,162.54,162.53,15.15172859]
[1754148867676,46.54,162.54,162.53,15.15172859]
[1754148867839,44.44,162.55,162.53,15.15172859]
[1754148868168,45.14,162.55,162.54,15.15172859]
[1754148868375,91.68,162.55,162.54,15.15172859]
[1754148868528,90.98,162.55,162.54,15.15172859]
[1754148868891,46.54,162.55,162.54,15.15172859]
[1754148870545,0.03,162.56,162.54,15.15172859]
[1754148870896,0.74,162.56,162.49,0.61542248]
[1754148871073,0.74,162.56,162.47,15.15172859]
[1754148871074,0.74,162.56,162.55,15.15172859]
[1754148871938,0.74,162.56,162.47,15.15172859]
[1754148872142,0.74,162.56,162.55,15.15172859]
[1754148872364,5.24971544,162.56,162.55,15.15172859]
[1754148872554,4.53971544,162.56,162.55,15.15172859]
[1754148872765,0.03,162.56,162.55,15.15172859]
[1754148875386,0.03,162.56,162.48,16.78468397]
[1754148875598,0.74,162.56,162.55,15.15172859]
[1754148876422,0.74,162.56,162.45,16.78468397]
[1754148876578,0.74,162.56,162.5,15.15172859]
[1754148876893,10.62796227,162.54,162.49,10.62796227]
[1754148877066,47.09,162.53,162.49,10.62796227]
[1754148877271,46.38,162.53,162.52,10.62796227]
[1754148878307,47.09,162.53,162.52,10.62796227]
[1754148878493,47.09,162.53,162.51,10.62796227]
[1754148878716,0.71,162.52,162.49,10.62796227]
[1754148878882,0.71,162.52,162.5,15.12147162]
[1754148880206,46.38,162.53,162.51,15.12147162]
[1754148880590,47.09,162.53,162.51,15.12147162]
[1754148880995,47.09,162.53,162.43,17.40033378]
[1754148881201,47.09,162.53,162.51,15.12147162]
[1754148881779,47.09,162.53,162.52,15.12147162]
[1754148882081,46.38,162.53,162.52,15.12147162]
[1754148882298,47.09,162.53,162.41,10.0]
[1754148882479,47.09,162.53,162.49,15.12147162]
[1754148882804,0.71,162.52,162.49,15.12147162]
[1754148883023,0.71,162.52,162.39,10.0]
[1754148883024,15.12147162,162.5,162.45,15.12147162]
[1754148883307,47.05,162.49,162.45,15.12147162]
[1754148883507,15.83147162,162.48,162.43,15.12147162]
[1754148883712,0.71,162.47,162.43,15.12147162]
[1754148883877,0.71,162.46,162.43,15.12147162]
[1754148884079,47.05,162.45,162.43,15.12147162]
[1754148884278,47.05,162.45,162.36,15.12147162]
[1754148884279,0.71,162.44,162.42,15.12147162]
[1754148884496,46.34,162.45,162.43,15.12147162]
[1754148885138,0.71,162.44,162.41,15.12147162]
[1754148885355,46.34,162.45,162.34,0.61599112]
[1754148885633,46.34,162.45,162.42,15.12147162]
[1754148885805,0.71,162.45,162.42,15.12147162]
[1754148886004,46.36,162.47,162.44,15.12147162]
[1754148886257,46.36,162.47,162.45,15.12147162]
[1754148886432,46.36,162.47,162.46,15.12147162]
[1754148887115,0.74,162.56,162.46,30.24294324]
[1754148887315,65.95679572,162.55,162.43,16.78468397]
[1754148887508,5.20494176,162.54,162.5,15.12147162]
[1754148887717,0.71,162.53,162.51,15.12147162]
[1754148887910,0.71,162.52,162.51,15.12147162]
[1754148888200,0.71,162.52,162.44,0.61561191]
[1754148888201,0.71,162.54,162.47,15.12147162]
[1754148888435,46.34,162.55,162.53,15.12147162]
[1754148888611,46.34,162.55,162.47,15.12147162]